Cogmind - Beta 12 X4 @@@ ROGUE MODE // 2022.12.04 @ 00:40:10 Player: Runia Result: Destroyed by G-50 Soldier with Heavy Laser Performance ------------- Evolutions (5) 2500 Regions Visited (23) 4600 Robots Destroyed (349) 1745 Value Destroyed (14337) 14337 Prototype IDs (216) 4320 Alien Tech Used (1) 200 Bonus (7745) 7745 TOTAL SCORE: 35447 Bonus ------- High Alert Combat Kills 2885 Follower Combat Kills 1150 Entered Garrisons 600 Network Hubs Disabled 200 Met Data Miner 300 Used Data Conduit 3000 Pursued by Intercept 500 Friendly Fire -890 Cogmind --------- Core Integrity 0/1000 Matter 51/300 Energy 315/315 System Corruption 34% Temperature Cool (9) Movement Rolling (190) Ox6 Location -5/Factory Parts ------- > --- POWER (2) -------- Neutrino Core > --- PROPULSION (5) --- Compact Wheel > --- UTILITY (8) ------ Huge Storage Unit Enhanced Optical Array Improved Core Shielding Improved Core Shielding Improved Core Shielding Hacking Suite > --- WEAPON (3) ------- Mini Smartbomb Launcher > --- INVENTORY (25) --- Advanced Energy Well (500) Improved Matter Compressor (0) Improved Matter Compressor (0) Experimental Optical Array Advanced Kinecellerator Improved Propulsion Shielding Heavy Proton Cannon Peak State ------------ > --- POWER ------------ Cold Fusion Reactor > --- PROPULSION ------- Carbon-fiber Leg Enhanced Flexi-carbon Leg Enhanced Flexi-carbon Leg Myomer Leg Enhanced Biometal Leg > --- UTILITY ---------- Experimental Heat Sink Cargo Storage Unit Experimental Targeting Computer Experimental Core Analyzer Transmission Jammer Improved Medium Armor Plating > --- WEAPON ----------- Wave Gun Advanced KE Penetrator Helical Railgun > --- INVENTORY -------- Improved Quantum Reactor Improved Medium Treads Improved Medium Treads Advanced Heat Sink Advanced Energy Well Advanced Energy Well High-capacity Matter Pod Experimental Optical Array Improved Sensor Array Encrypted Comm Array Advanced Kinecellerator Hardened Medium Armor Plating Improved Medium Armor Plating Improved Shield Generator Makeshift Hacking Suite Improved Hacking Suite Improved Hacking Suite Improved System Shield Authchip [R/NC] Improved System Restoration Module Long-range Tractor Beam Proton Cannon Neutron Cannon Flak Gun Gauss Cannon Heavy Missile Launcher Heavy Missile Launcher Long-range Missile Launcher Power Maul Power Sword [Rating: 110] Favorites ----------- Power Reinforced Deuterium Engine Engine Reinforced Deuterium Engine Power Core Light Nuclear Core Reactor Cold Fusion Reactor Propulsion Enhanced Flexi-carbon Leg Treads Medium Treads Leg Enhanced Flexi-carbon Leg Wheel Armored Wheel Utility Cargo Storage Unit Device Improved Sensor Array Storage Cargo Storage Unit Processor Improved Targeting Computer Hackware Hacking Suite Protection Hardened Heavy Armor Plating Weapon Enhanced Autogun Energy Gun High-powered Field Laser Energy Cannon Neutron Cannon Ballistic Gun Enhanced Autogun Ballistic Cannon Gauss Cannon Launcher Mini Smartbomb Launcher Impact Weapon Makeshift Hammer Special Melee Weapon Advanced Datajack Build | -11 -10 -10 -9 -9 -8 -8 -8 -8 -8 -7 -7 -7 -7 -6 -6 -6 -6 -6 -6 -6 -5 -5 -5 ------- Run | Scr Mat Min Mat Min Mat Gar Mat Gar Mat Fac Low Low Dat Pro Fac Ext Cet Arc Hub Gar Fac Was Fac Slots Evolved 10 | . . . 2 . 2 . . . . 2 . . . . 2 . . . . . 2 . . Power 1 | . . . . . . . . . . . . . . . . . . . . . 1 . . Propulsion 3 | . . . 1 . 1 . . . . . . . . . 1 . . . . . . . . Utility 6 | . . . 1 . 1 . . . . 2 . . . . 1 . . . . . 1 . . Weapon . | . . . . . . . . . . . . . . . . . . . . . . . . Parts Attached 357 | 2 11 1 8 1 23 25 21 25 7 7 8 28 9 12 5 23 12 7 11 31 64 1 15 Power 19 | . 2 . 2 . 1 1 . 1 . 2 . . . 2 . 1 1 1 . . 4 . 1 Engine 7 | . 1 . 1 . . 1 . 1 . 2 . . . . . . 1 . . . . . . Core 7 | . 1 . 1 . 1 . . . . . . . . . . . . . . . 3 . 1 Reactor 5 | . . . . . . . . . . . . . . 2 . 1 . 1 . . 1 . . Propulsion 82 | 2 2 1 1 1 5 9 6 3 6 1 . 1 7 1 1 1 1 . 3 7 21 . 2 Treads 37 | 2 . 1 1 1 4 8 4 3 6 1 . 1 1 . . . . . . . 4 . . Leg 30 | . . . . . . . . . . . . . 4 1 1 1 1 . 3 7 12 . . Wheel 15 | . 2 . . . 1 1 2 . . . . . 2 . . . . . . . 5 . 2 Hover . | . . . . . . . . . . . . . . . . . . . . . . . . Flight . | . . . . . . . . . . . . . . . . . . . . . . . . Utility 113 | . 4 . 3 . 7 2 4 9 1 4 3 12 2 3 4 10 4 3 2 10 15 . 11 Device 47 | . 2 . . . 2 . 1 3 . . 2 10 1 . 3 8 1 2 2 3 5 . 2 Storage 8 | . 2 . 1 . . . . . . . . . . 2 . . . . . . . . 3 Processor 10 | . . . . . 1 . 1 . . 2 . 1 . . . 2 . . . 2 . . 1 Hackware 6 | . . . . . . . . 1 . . . . . . 1 . . . . 2 1 . 1 Protection 42 | . . . 2 . 4 2 2 5 1 2 1 1 1 1 . . 3 1 . 3 9 . 4 Artifact . | . . . . . . . . . . . . . . . . . . . . . . . . Weapon 143 | . 3 . 2 . 10 13 11 12 . . 5 15 . 6 . 11 6 3 6 14 24 1 1 Energy Gun 12 | . 1 . . . . . . . . . . . . . . . . . 3 4 4 . . Energy Cannon 8 | . . . . . . . . . . . . . . 1 . 2 . . 1 1 3 . . Ballistic Gun 53 | . 2 . 1 . 4 7 7 6 . . 3 7 . 1 . 2 . 2 . 2 8 1 . Ballistic Cannon 15 | . . . . . 3 2 . . . . . 2 . 1 . 4 2 . . . 1 . . Launcher 37 | . . . 1 . 2 3 2 4 . . 2 5 . 2 . 2 4 . . 3 6 . 1 Special Weapon . | . . . . . . . . . . . . . . . . . . . . . . . . Impact Weapon 17 | . . . . . 1 1 2 2 . . . 1 . 1 . 1 . . 2 4 2 . . Slashing Weapon . | . . . . . . . . . . . . . . . . . . . . . . . . Piercing Weapon . | . . . . . . . . . . . . . . . . . . . . . . . . Special Melee Weapon 1 | . . . . . . . . . . . . . . . . . . 1 . . . . . Unidentified Prototypes 4 | . . . . . 1 . 1 . . . . 1 . . . . . . . . 1 . . Corrupted Parts 6 | . . . . . . . . . . . . . 1 4 . . . . . . 1 . . System Corruption 46 | . . . . . . . . . . . . . 5 31 . . . . . . 10 . . Parts Lost 71 | . . . . . 3 3 2 1 1 . . 4 2 2 . 3 6 1 . 4 30 7 2 Power 10 | . . . . . . 1 . . 1 . . . . 1 . 1 1 . . . 3 2 . Propulsion 23 | . . . . . 1 2 1 1 . . . 1 1 . . . 1 . . 1 11 2 1 Utility 23 | . . . . . 2 . 1 . . . . 2 1 . . 2 2 1 . 1 8 2 1 Weapon 15 | . . . . . . . . . . . . 1 . 1 . . 2 . . 2 8 1 . Highest Loss Streak 6 | . . . . . 1 1 2 1 1 . . 3 1 2 . 2 6 1 . 2 5 6 2 To Critical Strikes 2 | . . . . . . 1 . . . . . . . . . . . . . . . 1 . Average Slot Usage (%) 87 | . 97 100 85 88 89 88 89 89 84 79 84 83 84 84 86 86 89 92 92 92 83 45 50 Engine 3 | . 7 . . . . 2 9 9 3 3 7 7 7 3 . . 3 5 . . . . . Core 2 | . 6 14 10 11 9 4 . . . . . . . . . . . . . . 5 5 1 Reactor 1 | . . . . . . . . . . . . . . 2 6 5 1 . 6 6 3 . . Treads 14 | . 15 14 22 22 27 23 18 21 27 25 30 29 20 . . . . . . . 4 8 . Leg 11 | . . . . . . . . . . . . . 5 28 31 31 29 31 31 30 16 . . Wheel 5 | . 12 14 11 11 8 11 17 13 9 4 . . . . . . . . . . 3 5 10 Device 7 | . 11 14 4 . 7 9 1 1 4 . 5 7 7 6 5 6 6 11 12 11 12 10 4 Storage 7 | . 14 14 11 11 9 9 9 9 9 7 7 7 7 7 12 6 6 6 6 6 5 2 6 Processor 6 | . . . . . 1 . 8 9 9 14 8 6 7 7 6 11 6 6 6 11 6 3 4 Protection 7 | . . . 4 11 8 9 8 7 4 7 6 7 7 6 6 6 15 12 12 6 8 . 15 Energy Gun 1 | . 9 . . . . . . . . . . . . . . . . . 5 2 4 2 . Ballistic Gun 12 | . 18 28 21 22 14 10 17 15 18 15 14 9 14 10 6 5 6 12 12 11 7 2 . Ballistic Cannon 1 | . . . . . 2 2 . . . . . 2 . 3 . 9 10 . . . . . . Impact Weapon 1 | . . . . . . 4 . 1 . . . 1 7 7 6 1 . . . 2 1 . . Naked Turns 43 | . . . . . . . . . . . . . . . . . . . . . . 36 7 Heaviest Build 198 | 14 90 52 158 158 169 165 164 164 154 181 185 191 186 190 191 193 198 192 190 186 193 181 104 Greatest Support 140 | 40 40 12 12 12 12 24 24 42 12 106 106 106 112 112 140 140 140 140 140 126 109 20 41 Greatest Overweight (x) 59 | . 5 4 13 13 14 13 13 13 12 15 1 1 9 1 1 1 1 59 1 2 18 9 6 Average Overweight (x) 5 | . 3 4 8 13 13 9 6 8 12 8 1 1 1 1 1 1 1 22 1 1 5 1 2 Largest Inventory Capacity 30 | 8 25 20 30 30 30 30 30 30 30 30 30 30 30 30 30 30 30 30 30 30 30 30 25 Average Capacity 29 | 8 20 20 25 30 30 30 30 30 30 30 30 30 30 30 30 30 30 30 30 30 30 18 24 Most Carried 30 | 6 20 20 25 30 30 29 30 30 30 30 30 30 26 26 25 30 28 30 30 30 30 22 8 Average Carried 26 | 4 12 19 21 27 29 25 29 29 29 27 29 27 23 24 24 29 24 26 29 29 24 14 6 Final Capacity 30 | 8 20 20 30 30 30 30 30 30 30 30 30 30 30 30 30 30 30 30 30 30 30 5 25 Final Carried 30 | 2 19 20 25 30 29 27 29 29 30 30 30 25 26 26 25 29 23 30 30 28 22 5 7 Class Distribution -------------------- 55% | Hauler-Mutant 23% | Scavenger-Mutant 8% | Mutant 4% | Scavenger-Gunner 3% | Scavenger-Tank Dominant Class ---------------- Mutant | -10/Materials Mutant | -10/Mines Hauler-Mutant | -9/Materials Hauler-Mutant | -9/Mines Hauler-Mutant | -8/Materials Hauler-Mutant | -8/Garrison Hauler-Mutant | -8/Materials Hauler-Mutant | -8/Garrison Hauler-Mutant | -8/Materials Hauler-Mutant | -7/Factory Hauler-Mutant | -7/Lower Caves Hauler-Mutant | -7/Lower Caves Hauler-Mutant | -7/Data Miner Hauler-Mutant | -6/Proximity Caves Scavenger-Mutant | -6/Factory Commander-Gunner | -6/Extension Scavenger-Tank | -6/Cetus Scavenger-Mutant | -6/Archives Scavenger-Tank | -6/Hub_04(d) Scavenger-Mutant | -6/Garrison Hauler-Mutant | -5/Factory Mutant | -5/Waste Mutant | -5/Factory Resources | -11 -10 -10 -9 -9 -8 -8 -8 -8 -8 -7 -7 -7 -7 -6 -6 -6 -6 -6 -6 -6 -5 -5 -5 ----------- Run | Scr Mat Min Mat Min Mat Gar Mat Gar Mat Fac Low Low Dat Pro Fac Ext Cet Arc Hub Gar Fac Was Fac Matter Collected 11321 | 194 326 210 265 71 325 1032 951 573 348 302 220 960 269 89 29 1050 54 733 298 964 1856 202 . Remotely 1371 | . . . . . . . . 59 . . . 367 . . . . . . . . 743 202 . Salvage Created 13818 | . 820 90 454 139 657 731 1258 683 553 524 255 634 310 92 22 872 40 568 677 1340 2881 218 . Parts 686 | . 47 5 25 6 38 41 63 52 36 22 12 28 10 1 . 39 4 29 31 58 139 . . Haulers Intercepted 11 | . 2 . 2 . 1 . 2 . 2 . . . . . . . . . . . 2 . . Recyclers Shooed 11 | . 1 . 1 . 1 . . . 1 2 . . . . . 1 . . . . 4 . . Parts Field Recycled . | . . . . . . . . . . . . . . . . . . . . . . . . Retrieved Matter . | . . . . . . . . . . . . . . . . . . . . . . . . Parts Self-Destructed 36 | . . . . . . . . . . . 11 25 . . . . . . . . . . . Prevented . | . . . . . . . . . . . . . . . . . . . . . . . . Kills | -11 -10 -10 -9 -9 -8 -8 -8 -8 -8 -7 -7 -7 -7 -6 -6 -6 -6 -6 -6 -6 -5 -5 -5 ------- Run | Scr Mat Min Mat Min Mat Gar Mat Gar Mat Fac Low Low Dat Pro Fac Ext Cet Arc Hub Gar Fac Was Fac Combat Hostiles Destroyed 285 | . 15 3 10 3 10 21 26 24 6 5 9 24 4 5 . 16 4 4 11 30 54 1 . Melee 4 | . . . . . . 1 . . . . . . . 1 . . . . . 2 . . . Guns 156 | . 15 3 7 3 6 8 22 10 6 5 2 3 3 . . 3 1 4 11 14 30 . . Cannons 20 | . . . . . 1 4 . . . . . 1 . 1 . 12 . . . . 1 . . AOE 98 | . . . 3 . 3 8 4 14 . . 7 20 . 3 . . 3 . . 11 21 1 . Classes Destroyed 25 | . 5 1 . 1 4 2 2 2 . . 1 1 . . . . . . 1 1 3 1 . Worker 5 | . . . . . 1 . . . . 2 . . . . . . . . . . 2 . . Builder 12 | . . . . . 1 . 2 . . 1 . . . . 1 . . . 1 . 6 . . Tunneler 1 | . . . . . . . . . . . . . . . . . . . 1 . . . . Hauler 11 | . 2 . 2 . 1 . 2 . 2 . . . . . . . . . . . 2 . . Recycler 10 | . 2 . 1 . 1 . 1 . 1 2 . . . . . . . . . . 2 . . Minesweeper 1 | . . . . . . . . . . . 1 . . . . . . . . . . . . Mechanic 3 | . . . . . . . 1 . . . . 1 . . . . . . . . 1 . . Operator 10 | . . . . . . . 1 . 1 . . . . . . 1 . 7 . . . . . Watcher 7 | . 2 . . . 2 . . . . . . . . . . 1 1 . . . 1 . . Swarmer 58 | . 3 . 3 . . 10 3 7 . . 4 10 . . . . . . . 8 10 . . Cutter 3 | . . . . . . . . 3 . . . . . . . . . . . . . . . Saboteur 2 | . . . . . . . . . . . . . . . . . . . . . 2 . . Grunt 114 | . 12 2 7 2 3 4 13 5 2 2 4 9 . 2 . 6 . . 7 12 22 . . Brawler 11 | . . . . . . 1 2 . . 1 . 3 . . . 1 . . . . 3 . . Duelist 11 | . . . . . . 1 2 4 . . . . . 1 . . . . . 1 2 . . Protector 2 | . . . . . . . . . . . . . . . . . . . . . 2 . . Researcher 1 | . . . . . . . . . . . . 1 . . . . . . . . . . . Sentry 45 | . . . . 1 4 5 6 3 3 2 1 2 . . . 8 . 4 2 2 2 . . Demolisher 1 | . . 1 . . . . . . . . . . . . . . . . . . . . . Specialist 3 | . . . . . 2 . . . . . . . . . . 1 . . . . . . . Hunter 15 | . . . . . 1 . . 1 1 . . . . 2 . . . . . 5 5 . . Programmer 7 | . . . . . . . . 1 . . . . . . . . . . 2 . 4 . . Compactor 1 | . . . . . . . . . . . . . . . . . . . . . . 1 . Cetus Guard 4 | . . . . . . . . . . . . . . . . . 4 . . . . . . Enhanced Grunt 4 | . . . . . . . . . . . . . 4 . . . . . . . . . . Tracker 1 | . . . . . . . . . . . . . . . . . . . . . 1 . . Combat Programmer 1 | . . . . . . . . . . . . . . . . . . . . . 1 . . Executioner 2 | . . . . . . . . . . . . . . . . . . . . 2 . . . Savage 1 | . . . . . . . . . . . . . . . . . 1 . . . . . . Guerrilla 1 | . . . . . . . . . . . . . . . . 1 . . . . . . . Mutant 1 | . . . . . . . . . . . . . . . . . . . . . 1 . . Best Kill Streak 10 | . 4 2 3 1 6 5 5 7 2 2 4 10 2 3 1 3 5 4 3 5 10 1 . Combat Bots Only 10 | . 4 2 3 1 4 5 5 7 2 2 4 10 2 3 . 3 4 2 2 5 10 1 . Max Kills in Single Turn 4 | . 2 1 2 1 3 4 2 4 1 1 3 4 1 2 1 1 2 2 3 4 3 1 . Gunslinging 1 | . 1 . . . . . . . . . . . . . . . . . . . . . . Exploded 4 | . . . 2 . 3 4 2 4 . . 3 4 . 2 . . 2 . . 4 3 1 . Melee 1 | . . . . . . 1 . . . . . . . 1 . . . . . 1 . . . Uniques/NPCs Destroyed . | . . . . . . . . . . . . . . . . . . . . . . . . Combat | -11 -10 -10 -9 -9 -8 -8 -8 -8 -8 -7 -7 -7 -7 -6 -6 -6 -6 -6 -6 -6 -5 -5 -5 -------- Run | Scr Mat Min Mat Min Mat Gar Mat Gar Mat Fac Low Low Dat Pro Fac Ext Cet Arc Hub Gar Fac Was Fac Damage Taken 19352 | . 409 48 181 81 961 1200 1238 388 433 310 348 1049 1146 483 14 1317 1272 366 596 1890 4831 300 491 Core 2280 | . 103 . 24 . 100 151 171 28 46 16 41 33 . 90 . 115 128 51 40 133 696 120 194 Absorbed by Shields 414 | . . . . . . 7 . . . . . 259 . . . 134 . . . 14 . . . Redirected to Shielding 278 | . . . . . . . . . . . . . . . . . . . . . 206 . 72 Regen/Repaired (Parts) 813 | . . . . . . . . . . . . . . . 193 620 . . . . . . . Core Remaining (%) 63 | 100 . 58 . 94 . . . . 9 . . . . 74 . . . . . 45 . . . Volleys Fired 821 | . 49 4 22 6 38 64 84 36 31 29 13 47 23 8 . 70 9 39 37 46 151 13 2 Largest 3 | . 2 2 2 2 2 2 2 2 2 2 2 2 2 1 . 3 3 2 3 3 3 2 1 Hottest 199 | . 70 46 46 46 96 48 50 50 50 50 50 76 53 48 . 121 121 68 149 154 199 103 80 Shots Fired 1624 | . 98 8 42 12 74 107 164 64 62 58 20 69 46 9 . 153 22 76 105 111 307 15 2 Gun 1342 | . 98 8 40 12 60 86 160 58 62 58 14 37 46 1 . 42 4 76 102 101 270 7 . Cannon 186 | . . . . . 12 16 . . . . . 16 . 1 . 110 8 . 3 . 20 . . Launcher 96 | . . . 2 . 2 5 4 6 . . 6 16 . 7 . 1 10 . . 10 17 8 2 Special . | . . . . . . . . . . . . . . . . . . . . . . . . Kinetic 1262 | . 56 8 40 12 72 102 160 58 62 58 14 53 46 2 . 125 12 76 68 67 167 4 . Thermal 266 | . 42 . . . . . . . . . . . . . . 27 . . 37 34 123 3 . Explosive 96 | . . . 2 . 2 5 4 6 . . 6 16 . 7 . 1 10 . . 10 17 8 2 Electromagnetic . | . . . . . . . . . . . . . . . . . . . . . . . . Robot Hit Streak 35 | . 9 7 9 5 7 35 19 11 8 10 8 7 13 3 . 16 6 13 12 26 28 13 14 Robot Miss Streak 5 | . 3 1 2 3 4 2 5 2 3 2 1 5 3 2 . 3 2 3 4 4 5 . . Penetration Max 1 | . . . . . . . . . . . . . . . . 1 . 1 1 . 1 . . Secondary Targets 11 | . 1 . 1 . . 1 2 . 1 1 . . . . . . . . . 2 2 . . Max Gunslinging Chain 1 | . 1 . 1 . . 1 1 . 1 1 . . . . . . . . . 1 1 . . Shots Hit Robots 1156 | . 73 6 37 8 56 93 122 43 40 38 11 37 33 6 4 92 17 57 61 92 217 12 1 Core Hits 741 | . 40 7 29 5 37 44 63 37 15 19 16 47 19 13 . 38 28 25 21 66 168 2 2 Critical Kills 10 | . . . . . . . 2 . . . . . . . . . . 4 1 2 1 . . Critical Parts Destroyed 18 | . . . . . . . . 1 . . . 1 1 . . . . 5 2 7 1 . . Critical Strikes 54 | . 1 . . . 1 4 2 1 . . . 2 1 . . 10 1 9 4 11 6 1 . Burn 8 | . 1 . . . . . . . . . . . . . . . . . 1 2 4 . . Destroy 24 | . . . . . . . 2 1 . . . . 1 . . . . 9 3 5 2 1 . Blast 17 | . . . . . 1 4 . . . . . 1 . . . 10 1 . . . . . . Smash 5 | . . . . . . . . . . . . 1 . . . . . . . 4 . . . Melee Attacks 104 | . . . . . 2 16 2 5 . . . 2 27 1 10 6 . 3 2 23 5 . . Impact 101 | . . . . . 2 16 2 5 . . . 2 27 1 10 6 . . 2 23 5 . . Slashing . | . . . . . . . . . . . . . . . . . . . . . . . . Piercing . | . . . . . . . . . . . . . . . . . . . . . . . . Sneak Attacks 8 | . . . . . . . . . . . . 1 . . 1 1 . 3 . 2 . . . Combat Hostiles 2 | . . . . . . . . . . . . . . . . . . . . 2 . . . Follow-up Attacks . | . . . . . . . . . . . . . . . . . . . . . . . . Damage Inflicted 38212 | . 967 109 776 140 1184 2264 2715 1724 680 645 887 3153 626 1046 280 3103 1361 1487 1828 3766 8435 978 58 Guns 18968 | . 967 109 582 140 752 857 2177 709 680 645 143 381 554 . . 441 68 1487 1790 1882 4434 170 . Cannons 3790 | . . . . . 124 281 . . . . . 276 . 24 . 2430 181 . 38 . 436 . . Explosions 13275 | . . . 194 . 308 582 538 1015 . . 744 2401 . 955 . 30 1112 . . 1017 3513 808 58 Melee 2112 | . . . . . . 544 . . . . . 95 63 67 280 196 . . . 867 . . . Ramming 67 | . . . . . . . . . . . . . 9 . . 6 . . . . 52 . . Kinetic 18216 | . 646 109 582 140 876 1138 2177 709 680 645 143 657 554 24 . 2502 249 1487 1197 1174 2427 100 . Thermal 4542 | . 321 . . . . . . . . . . . . . . 369 . . 631 708 2443 70 . Explosive 13275 | . . . 194 . 308 582 538 1015 . . 744 2401 . 955 . 30 1112 . . 1017 3513 808 58 Electromagnetic . | . . . . . . . . . . . . . . . . . . . . . . . . Impact 2112 | . . . . . . 544 . . . . . 95 63 67 280 196 . . . 867 . . . Slashing . | . . . . . . . . . . . . . . . . . . . . . . . . Piercing . | . . . . . . . . . . . . . . . . . . . . . . . . Highest Corruption 36 | . . . . . . 1 1 1 1 1 1 3 5 36 . 6 6 4 1 1 21 34 34 Average Corruption 6 | . . . . . . 1 1 1 1 1 1 2 5 5 . 5 4 3 1 1 16 27 34 Corruption Purged 11 | . . . . . . . . . . . 1 3 . . . 1 2 4 . . . . . Corruption Blocked 3 | . . . . . . . . . . . . 3 . . . . . . . . . . . Effects 195 | . . . . . . 1 10 11 4 . . 8 2 10 . 4 4 4 2 10 95 13 17 Message Errors 35 | . . . . . . . 2 2 1 . . 2 . 1 . 2 1 1 2 1 10 2 8 Matter Fused 42 | . . . . . . . 2 4 1 . . 3 2 2 . . 1 . . 4 19 2 2 Heat Flow Errors 31 | . . . . . . . . 1 1 . . 2 . 3 . . 1 . . 1 18 2 2 Energy Discharges 24 | . . . . . . . 4 2 . . . 1 . 1 . 1 . 1 . 1 12 . 1 Parts Rejected 4 | . . . . . . . . . . . . . . . . . . . . . 3 . 1 Data Loss (minor) 20 | . . . . . . 1 2 . 1 . . . . 1 . . 1 . . 1 9 2 2 Data Loss (major) 13 | . . . . . . . . 2 . . . . . 1 . 1 . . . 1 7 1 . Misfires 5 | . . . . . . . . . . . . . . 1 . . . . . 1 3 . . Alerts 2 | . . . . . . . . . . . . . . . . . . . . . 2 . . Misdirections 3 | . . . . . . . . . . . . . . . . . . . . . . 2 1 Weapon Failures 16 | . . . . . . . . . . . . . . . . . . 2 . . 12 2 . Overload Shots . | . . . . . . . . . . . . . . . . . . . . . . . . Overflow Damage 1337 | . . . 17 . . 117 47 31 . . 13 208 18 2 177 148 . . 16 442 59 . 42 Projectiles 98 | . . . . . . . . . . . . . . . . 46 . . 16 . 36 . . Explosions 413 | . . . 17 . . 24 47 31 . . 13 113 . 2 . . . . . 111 13 . 42 Melee 826 | . . . . . . 93 . . . . . 95 18 . 177 102 . . . 331 10 . . Knockbacks 22 | . . . . . 2 4 . . . . . 4 . . 1 10 . . . 1 . . . Impact 3 | . . . . . . . . . . . . 1 . . 1 . . . . 1 . . . Kinetic 17 | . . . . . 2 4 . . . . . 3 . . . 8 . . . . . . . Secondary 2 | . . . . . . . . . . . . . . . . 2 . . . . . . . Self-Inflicted Damage 518 | . . . . . 79 . . . . . 22 84 . 91 . . . . . 78 77 38 49 Shots 17 | . . . . . 2 . . . . . 1 4 . 3 . . . . . 3 2 1 1 Rammed 1 | . . . . . . . . . . . . . 1 . . . . . . . . . . Targets Rammed 4 | . . . . . . . . . . . . . 1 . . 1 . . . . 2 . . Kicked 3 | . . . . . . . . . . . . . . . . 1 . . . . 2 . . Crushed . | . . . . . . . . . . . . . . . . . . . . . . . . Highest Temperature 393 | . 120 3 3 6 306 . 300 102 249 99 96 393 146 213 . 318 121 31 117 86 293 266 257 Average Temperature 63 | . 31 3 2 3 139 . 53 30 61 25 28 118 55 77 . 96 59 4 30 17 69 171 89 Received Heat Transfer 4026 | . 165 6 72 39 216 276 540 36 117 90 60 291 . 45 . 336 189 63 279 345 717 . 144 Effects 11 | . . . . . 1 . . . . . . 4 . . . 5 . . . . 1 . . Interference 11 | . . . . . 1 . . . . . . 4 . . . 5 . . . . 1 . . Siege Activations . | . . . . . . . . . . . . . . . . . . . . . . . . Robots Corrupted . | . . . . . . . . . . . . . . . . . . . . . . . . Combat Hostiles . | . . . . . . . . . . . . . . . . . . . . . . . . Parts Fried 10 | . . . . . . 1 . . . . . . . . 1 2 . . . 6 . . . Impact Corruptions 26 | . . . . . . 3 . . . . . 2 1 . 7 4 . . . 8 1 . . Robots Melted 2 | . . . . . . . . . . . . . . . . . . . . . 2 . . Combat Hostiles 2 | . . . . . . . . . . . . . . . . . . . . . 2 . . Parts Melted 14 | . 4 . . . . . . . . . . . . . . . . . 1 4 5 . . Heat Transferred 6290 | . 999 . . . . . . . . . . . . . . . . . 888 1147 3145 111 . Parts Sabotaged . | . . . . . . . . . . . . . . . . . . . . . . . . Parts Stolen . | . . . . . . . . . . . . . . . . . . . . . . . . Parts Stripped . | . . . . . . . . . . . . . . . . . . . . . . . . Power Chain Reactions . | . . . . . . . . . . . . . . . . . . . . . . . . Missiles Intercepted . | . . . . . . . . . . . . . . . . . . . . . . . . Alert | -11 -10 -10 -9 -9 -8 -8 -8 -8 -8 -7 -7 -7 -7 -6 -6 -6 -6 -6 -6 -6 -5 -5 -5 ------- Run | Scr Mat Min Mat Min Mat Gar Mat Gar Mat Fac Low Low Dat Pro Fac Ext Cet Arc Hub Gar Fac Was Fac Peak Influence 1586 | . 228 164 278 133 220 772 674 1011 669 180 . . . . 17 724 405 368 435 1175 1586 606 502 Initial 616 | . . 69 . 108 . 102 376 261 492 100 . . . . . . 404 150 . 290 616 538 396 Average 369 | . 109 88 189 37 97 519 308 759 462 84 . . . . 7 248 371 66 218 727 1114 568 420 Maximum Alert Level 4 | . 1 . 1 . 1 3 2 3 2 . . . . . . 3 2 1 2 4 4 2 2 Low Security (%) 47 | 100 83 100 38 100 85 7 23 . . 100 . . . . 100 59 . 88 44 . . . . Level 1 16 | . 16 . 61 . 14 15 53 6 35 . . . . . . 19 85 11 42 15 . . 34 Level 2 13 | . . . . . . 53 22 15 64 . . . . . . 17 14 . 13 16 7 100 65 Level 3 15 | . . . . . . 23 . 78 . . . . . . . 4 . . . 54 42 . . Level 4 6 | . . . . . . . . . . . . . . . . . . . . 13 49 . . Level 5 . | . . . . . . . . . . . . . . . . . . . . . . . . High Security . | . . . . . . . . . . . . . . . . . . . . . . . . Max Security . | . . . . . . . . . . . . . . . . . . . . . . . . Squads Dispatched 44 | . 4 . 1 . 3 . 5 . 1 2 . 1 . . 1 4 . . 4 . 18 . . Investigation 7 | . 3 . . . . . 1 . . . . . . . 1 1 . . 1 . . . . Extermination 5 | . . . . . . . . . . 1 . . . . . . . . 2 . 2 . . Reinforcement 13 | . 1 . 1 . 2 . 2 . 1 1 . . . . . 1 . . 1 . 3 . . Assault 11 | . . . . . . . . . . . . 1 . . . 2 . . . . 8 . . Garrison 6 | . . . . . 1 . 2 . . . . . . . . . . . . . 3 . . Intercept 2 | . . . . . . . . . . . . . . . . . . . . . 2 . . Searches Triggered . | . . . . . . . . . . . . . . . . . . . . . . . . Construction Impeded 1 | . . . . . . . . . . . . . . . . . . . . . 1 . . Haulers Reinforced 1 | . . . . . . . . . . . . . . . . . . . . . 1 . . Active Scanning Responses . | . . . . . . . . . . . . . . . . . . . . . . . . Cargo Convoy Interrupts . | . . . . . . . . . . . . . . . . . . . . . . . . Stealth | -11 -10 -10 -9 -9 -8 -8 -8 -8 -8 -7 -7 -7 -7 -6 -6 -6 -6 -6 -6 -6 -5 -5 -5 --------- Run | Scr Mat Min Mat Min Mat Gar Mat Gar Mat Fac Low Low Dat Pro Fac Ext Cet Arc Hub Gar Fac Was Fac Distress Signals 11 | . 1 . 1 . 2 . 1 . . 1 . . . . . . 1 . 3 . . . 1 Communications Jammed 40 | . . . . . . . . . . . . . . . . . . . 35 . 5 . . Distress Signals 38 | . . . . . . . . . . . . . . . . . . . 33 . 5 . . Times Spotted 441 | . 20 3 23 4 25 21 35 16 7 8 9 28 4 5 4 49 5 24 19 26 92 6 8 Peak Tracking Total 14 | . 5 2 7 2 5 4 5 4 2 3 4 8 2 3 1 14 5 1 3 4 7 5 7 Tactical Retreats 16 | . . . 1 1 2 . 2 1 . . . . . . . 3 . . 1 . 4 . 1 Traps | -11 -10 -10 -9 -9 -8 -8 -8 -8 -8 -7 -7 -7 -7 -6 -6 -6 -6 -6 -6 -6 -5 -5 -5 ------- Run | Scr Mat Min Mat Min Mat Gar Mat Gar Mat Fac Low Low Dat Pro Fac Ext Cet Arc Hub Gar Fac Was Fac Traps Triggered 24 | . 3 . . . . 2 1 10 . . . . . . . 4 . . . 3 1 . . Indirectly . | . . . . . . . . . . . . . . . . . . . . . . . . Trap Hack Attempts . | . . . . . . . . . . . . . . . . . . . . . . . . Triggered . | . . . . . . . . . . . . . . . . . . . . . . . . Disarmed . | . . . . . . . . . . . . . . . . . . . . . . . . Reprogrammed . | . . . . . . . . . . . . . . . . . . . . . . . . Reused 1 | . . . . . . . . . . . . . 1 . . . . . . . . . . Traps Extracted . | . . . . . . . . . . . . . . . . . . . . . . . . Installed 1 | . . . . . . . . . . . . . 1 . . . . . . . . . . Triggered 1 | . . . . . . . . . . . 1 . . . . . . . . . . . . Most Traps Carried 1 | . . . . . . . . . . . 1 1 1 . . . . . . . . . . Machines | -11 -10 -10 -9 -9 -8 -8 -8 -8 -8 -7 -7 -7 -7 -6 -6 -6 -6 -6 -6 -6 -5 -5 -5 ---------- Run | Scr Mat Min Mat Min Mat Gar Mat Gar Mat Fac Low Low Dat Pro Fac Ext Cet Arc Hub Gar Fac Was Fac Machines Disabled 35 | . . . 1 . . 1 3 . . . . 1 . . . 6 . 3 11 5 3 . 1 Max in Single Turn 2 | . . . 1 . . 1 1 . . . . 1 . . . 1 . 1 2 2 2 . 1 Garrison Access 1 | . . . . . . . . . . . . . . . . . . . . . 1 . . Network Hub 1 | . . . . . . . . . . . . . . . . . . . 1 . . . . Machines Sabotaged 1 | . . . . . . . . . . . . . . . . . . . 1 . . . . Overloaded Fab Kills . | . . . . . . . . . . . . . . . . . . . . . . . . Hacking | -11 -10 -10 -9 -9 -8 -8 -8 -8 -8 -7 -7 -7 -7 -6 -6 -6 -6 -6 -6 -6 -5 -5 -5 --------- Run | Scr Mat Min Mat Min Mat Gar Mat Gar Mat Fac Low Low Dat Pro Fac Ext Cet Arc Hub Gar Fac Was Fac Machines Accessed 65 | . 5 . 1 . 4 1 8 2 5 3 . . 3 . 3 15 . . 5 3 5 . 2 Terminals 50 | . 5 . 1 . 1 1 7 2 3 2 . . . . 1 15 . . 4 3 3 . 2 Fabricators 2 | . . . . . . . . . . . . . . . 1 . . . . . 1 . . Repair Stations 2 | . . . . . 1 . . . . 1 . . . . . . . . . . . . . Recycling Units . | . . . . . . . . . . . . . . . . . . . . . . . . Scanalyzers 4 | . . . . . 1 . . . 2 . . . . . 1 . . . . . . . . Garrison Access 4 | . . . . . 1 . 1 . . . . . . . . . . . 1 . 1 . . Total Hacks 209 | . 22 . 3 . 11 2 31 2 22 6 . . 25 . 10 32 . . 8 10 19 . 6 Successful 127 | . 12 . 3 . 6 . 19 2 16 3 . . 25 . 10 13 . . 6 2 9 . 1 Failed 81 | . 9 . . . 5 2 12 . 6 3 . . . . . 19 . . 2 8 10 . 5 Catastrophic 11 | . . . . . 1 . 1 . 1 1 . . . . . 3 . . . 1 2 . 1 Database Lockouts 1 | . 1 . . . . . . . . . . . . . . . . . . . . . . Manual 75 | . 15 . . . 3 . 23 . 10 1 . . . . 3 4 . . 4 2 5 . 5 Terminals 152 | . 22 . 3 . 5 2 30 2 13 5 . . . . 2 32 . . 6 10 14 . 6 Fabricators 9 | . . . . . . . . . . . . . . . 6 . . . . . 3 . . Repair Stations 3 | . . . . . 2 . . . . 1 . . . . . . . . . . . . . Recycling Units . | . . . . . . . . . . . . . . . . . . . . . . . . Scanalyzers 14 | . . . . . 3 . . . 9 . . . . . 2 . . . . . . . . Garrison Access 6 | . . . . . 1 . 1 . . . . . . . . . . . 2 . 2 . . Terminal Hacks 90 | . 10 . 3 . 2 . 15 2 5 3 . . 25 . 2 12 . . 2 2 6 . 1 Record 6 | . . . . . . . . . . . . . 6 . . . . . . . . . . Part Schematic 13 | . 1 . . . . . . . . 1 . . 11 . . . . . . . . . . Robot Schematic 6 | . . . . . 1 . . . . . . . 5 . . . . . . . . . . Robot Analysis 10 | . 3 . 1 . 1 . 5 . . . . . . . . . . . . . . . . Prototype ID Bank 10 | . 2 . 1 . . . . . 1 1 . . 3 . . 1 . . 1 . . . . Open Door 9 | . . . . . . . . 1 . . . . . . . 7 . . . 1 . . . Level Access Points 1 | . . . . . . . . . . . . . . . . . . . . . 1 . . Branch Access Points 1 | . . . . . . . . . . . . . . . . . . . . . . . 1 Emergency Access Points 1 | . . . . . . . . 1 . . . . . . . . . . . . . . . Terminal Index 2 | . 1 . . . . . 1 . . . . . . . . . . . . . . . . Alert Level 4 | . . . . . . . 2 . . . . . . . . 1 . . . . 1 . . Unreport Threat 5 | . . . . . . . 3 . 2 . . . . . . . . . . . . . . Locate Traps 8 | . . . 1 . . . 1 . . . . . . . 1 3 . . . . 2 . . Hauler Manifests 3 | . 1 . . . . . . . . . . . . . 1 . . . 1 . . . . Zone Layout 10 | . 2 . . . . . 3 . 2 1 . . . . . . . . . . 2 . . Patrol Navigation 1 | . . . . . . . . . . . . . . . . . . . . 1 . . . Fabricator Hacks 5 | . . . . . . . . . . . . . . . 3 . . . . . 2 . . Load Schematic 3 | . . . . . . . . . . . . . . . 2 . . . . . 1 . . Build 2 | . . . . . . . . . . . . . . . 1 . . . . . 1 . . Repair Station Hacks 1 | . . . . . 1 . . . . . . . . . . . . . . . . . . Scan Component 1 | . . . . . 1 . . . . . . . . . . . . . . . . . . Recycling Unit Hacks . | . . . . . . . . . . . . . . . . . . . . . . . . Scanalyzer 13 | . . . . . 2 . . . 9 . . . . . 2 . . . . . . . . Insert Component 6 | . . . . . 1 . . . 4 . . . . . 1 . . . . . . . . Analyze 7 | . . . . . 1 . . . 5 . . . . . 1 . . . . . . . . Garrison Access Hacks 4 | . . . . . 1 . 1 . . . . . . . . . . . 1 . 1 . . Unlock Access 3 | . . . . . 1 . 1 . . . . . . . . . . . 1 . . . . Seal Access 1 | . . . . . . . . . . . . . . . . . . . . . 1 . . Unauthorized Hacks 14 | . 2 . . . . . 3 . 2 . . . . . 3 1 . . 3 . . . . Terminals 11 | . 2 . . . . . 3 . 2 . . . . . . 1 . . 3 . . . . Track 1 | . . . . . . . . . . . . . . . . . . . 1 . . . . Assimilate 1 | . . . . . . . . . . . . . . . . 1 . . . . . . . Botnet 7 | . 2 . . . . . 2 . 2 . . . . . . . . . 1 . . . . Operators 1 | . . . . . . . 1 . . . . . . . . . . . . . . . . Sabotage 1 | . . . . . . . . . . . . . . . . . . . 1 . . . . Fabricators 3 | . . . . . . . . . . . . . . . 3 . . . . . . . . Prioritize 1 | . . . . . . . . . . . . . . . 1 . . . . . . . . Haulers 1 | . . . . . . . . . . . . . . . 1 . . . . . . . . Recompile 1 | . . . . . . . . . . . . . . . 1 . . . . . . . . Repair Stations . | . . . . . . . . . . . . . . . . . . . . . . . . Recycling Units . | . . . . . . . . . . . . . . . . . . . . . . . . Scanalyzers . | . . . . . . . . . . . . . . . . . . . . . . . . Garrison Access . | . . . . . . . . . . . . . . . . . . . . . . . . Data Cores Recovered 1 | . . . . . . . 1 . . . . . . . . . . . . . . . . Used . | . . . . . . . . . . . . . . . . . . . . . . . . Hacking Detections 48 | . 5 . . . 3 1 8 . 4 3 . . . . 3 11 . . 3 2 4 . 1 Full Trace Events 2 | . 1 . . . . . . . . . . . . . . 1 . . . . . . . Feedback Events 1 | . . . . . . . . . . . . . . . . 1 . . . . . . . Corruption 1 | . . . . . . . . . . . . . . . . 1 . . . . . . . Feedback Blocked . | . . . . . . . . . . . . . . . . . . . . . . . . Robot Schematics Acquired 6 | . . . . . 1 . . . . . . . 5 . . . . . . . . . . Robots Built 1 | . . . . . . . . . . . . . . . 1 . . . . . . . . Authchips 2 | . . . . . . . . . . . . . . . 1 . . . . . 1 . . Time 154 | . . . . . . . . . . . . . . . 116 . . . . . 38 . . Total Robot Build Rating 3 | . . . . . . . . . . . . . . . 3 . . . . . . . . Part Schematics Acquired 19 | . 1 . . . 1 . . . 4 1 . . 11 . 1 . . . . . . . . Parts Built . | . . . . . . . . . . . . . . . . . . . . . . . . Authchips . | . . . . . . . . . . . . . . . . . . . . . . . . Time . | . . . . . . . . . . . . . . . . . . . . . . . . Total Part Build Rating . | . . . . . . . . . . . . . . . . . . . . . . . . Parts Repaired . | . . . . . . . . . . . . . . . . . . . . . . . . Time . | . . . . . . . . . . . . . . . . . . . . . . . . Parts Recycled . | . . . . . . . . . . . . . . . . . . . . . . . . Recycled Matter . | . . . . . . . . . . . . . . . . . . . . . . . . Retrieved Matter . | . . . . . . . . . . . . . . . . . . . . . . . . Retrieved Components . | . . . . . . . . . . . . . . . . . . . . . . . . Parts Scanalyzed 6 | . . . . . 1 . . . 4 . . . . . 1 . . . . . . . . Part Schematics Acquired 6 | . . . . . 1 . . . 4 . . . . . 1 . . . . . . . . Parts Damaged . | . . . . . . . . . . . . . . . . . . . . . . . . Bothacking | -11 -10 -10 -9 -9 -8 -8 -8 -8 -8 -7 -7 -7 -7 -6 -6 -6 -6 -6 -6 -6 -5 -5 -5 ------------ Run | Scr Mat Min Mat Min Mat Gar Mat Gar Mat Fac Low Low Dat Pro Fac Ext Cet Arc Hub Gar Fac Was Fac Used RIF Installer . | . . . . . . . . . . . . . . . . . . . . . . . . Robots Hacked 2 | . . . . . . . . . . . . . . . . . . 2 . . . . . Non-combat 2 | . . . . . . . . . . . . . . . . . . 2 . . . . . Combat . | . . . . . . . . . . . . . . . . . . . . . . . . Robot Hacks Applied 3 | . . . . . . . . . . . . . . . . . . 3 . . . . . check_alert 3 | . . . . . . . . . . . . . . . . . . 3 . . . . . Relay Couplers Released 3 | . . . . . . . . 3 . . . . . . . . . . . . . . . Programmers 3 | . . . . . . . . 3 . . . . . . . . . . . . . . . Fabnet Peak Effective % . | . . . . . . . . . . . . . . . . . . . . . . . . Robots Rewired 19 | . . . . . . . . . . . . 1 . . . 18 . . . . . . . Allies Hacked . | . . . . . . . . . . . . . . . . . . . . . . . . Hacks Repelled . | . . . . . . . . . . . . . . . . . . . . . . . . Allies | -11 -10 -10 -9 -9 -8 -8 -8 -8 -8 -7 -7 -7 -7 -6 -6 -6 -6 -6 -6 -6 -5 -5 -5 -------- Run | Scr Mat Min Mat Min Mat Gar Mat Gar Mat Fac Low Low Dat Pro Fac Ext Cet Arc Hub Gar Fac Was Fac Total Allies 45 | . . . . 2 . . . 1 . . . 1 . . 1 38 . . . 2 . . . Largest Group 21 | . . . . 2 . . . 1 . . . 1 1 . 1 21 5 . . 2 . . . Highest-Rated Group 716 | . . . . 57 . . . 31 . . . 20 20 . 23 716 266 . . 67 . . . Highest-Rated Ally 159 | . . . . 31 . . . 31 . . . 20 20 . 23 159 153 . . 38 . . . Warlord Squad Rendezvous 4 | . . . . . . . . . . . . . . . 2 . . . . . 2 . . Dakka 1 | . . . . . . . . . . . . . . . 1 . . . . . . . . Infantry 1 | . . . . . . . . . . . . . . . 1 . . . . . . . . Ranger 1 | . . . . . . . . . . . . . . . . . . . . . 1 . . Chimera 1 | . . . . . . . . . . . . . . . . . . . . . 1 . . Total Orders 9 | . . . . . . . . . . . . . 1 . 1 7 . . . . . . . STAY 3 | . . . . . . . . . . . . . 1 . . 2 . . . . . . . FOLLOW 2 | . . . . . . . . . . . . . . . . 2 . . . . . . . AID 4 | . . . . . . . . . . . . . . . 1 3 . . . . . . . Ally Attacks 260 | . . . . 4 . . . 17 . . . . 1 . . 228 5 . . 5 . . . Total Damage 6322 | . . . . 86 . . . 308 . . . . 21 . . 5597 107 . . 203 . . . Kills 36 | . . . . . . . . 2 . . . . . . . 33 . . . 1 . . . Allies Corrupted 1 | . . . . . . . . . . . . . . . . 1 . . . . . . . Allies Melted . | . . . . . . . . . . . . . . . . . . . . . . . . Intel | -11 -10 -10 -9 -9 -8 -8 -8 -8 -8 -7 -7 -7 -7 -6 -6 -6 -6 -6 -6 -6 -5 -5 -5 ------- Run | Scr Mat Min Mat Min Mat Gar Mat Gar Mat Fac Low Low Dat Pro Fac Ext Cet Arc Hub Gar Fac Was Fac Robot Analysis Total 141 | . 3 . 1 . 1 . 5 . . . . . 131 . . . . . . . . . . Derelict Logs Recovered 4 | . . 1 . 1 . . . . . . . 2 . . . . . . . . . . . Drone Launches . | . . . . . . . . . . . . . . . . . . . . . . . . Drone Recoveries . | . . . . . . . . . . . . . . . . . . . . . . . . Exploration | -11 -10 -10 -9 -9 -8 -8 -8 -8 -8 -7 -7 -7 -7 -6 -6 -6 -6 -6 -6 -6 -5 -5 -5 ------------- Run | Scr Mat Min Mat Min Mat Gar Mat Gar Mat Fac Low Low Dat Pro Fac Ext Cet Arc Hub Gar Fac Was Fac Turns Passed 28054 | 4 1151 478 696 1501 1341 1567 1420 1311 624 903 2786 2009 611 574 696 1900 201 3069 666 1488 2529 148 381 Spaces Moved 9834 | 1 581 297 257 515 383 535 609 497 199 304 1142 781 190 273 339 692 83 239 253 607 675 125 257 Core 204 | . . . . . . . . . . . . . . . . . . 88 . . . 103 13 Treads 2207 | 1 32 . . . . . . 3 . 113 1142 781 135 . . . . . . . . . . Legs 2912 | . . . . . . . . . . . . . 48 273 339 692 83 151 253 607 466 . . Wheels 4511 | . 549 297 257 515 383 535 609 494 199 191 . . 7 . . . . . . . 209 22 244 Hover . | . . . . . . . . . . . . . . . . . . . . . . . . Flight . | . . . . . . . . . . . . . . . . . . . . . . . . Fastest Speed 50 | 160 145 150 150 285 270 180 180 180 270 236 236 236 190 190 190 190 190 190 190 185 180 50 50 Average Speed 241 | 160 157 150 216 285 286 235 183 224 270 268 236 236 226 190 190 190 190 1224 190 187 264 79 129 Slowest Speed 3000 | 160 480 150 285 285 300 285 285 392 270 315 236 236 320 190 190 190 190 3000 190 255 470 215 190 Overloaded Moves . | . . . . . . . . . . . . . . . . . . . . . . . . Propulsion Burnouts . | . . . . . . . . . . . . . . . . . . . . . . . . Robots Hopped . | . . . . . . . . . . . . . . . . . . . . . . . . Cave-ins Triggered . | . . . . . . . . . . . . . . . . . . . . . . . . Exploration Rate (%) 52 | 2 93 62 25 96 33 57 62 56 28 7 98 95 80 53 6 82 47 78 30 53 24 85 9 Regions Visited 23 Branch Regions 10 Pre-discovered Areas 27 | . . . . . . . . . . . 1 . 26 . . . . . . . . . . Known Exits Taken 5 | . . . . . 1 . 1 . 1 1 . . . . . . . . 1 . . . . Unknown Exits Taken 13 | 1 1 1 1 1 . . . . . . 1 1 1 1 1 1 1 1 . . . . . Scrap Searched 9 | . . 1 . 2 . . . . . . 1 4 . 1 . . . . . . . . . Spaces Dug 311 | . . . 16 . 13 23 15 20 . . 31 73 . . 6 20 . . 3 39 38 . 14 Terrain Destroyed 1021 | . . . 44 . 37 40 36 58 . . 68 188 . 83 6 32 82 12 12 58 178 61 26 Melee 24 | . . . . . 2 2 2 2 . . . 1 . . 6 . . . 2 2 5 . . Projectile 84 | . . . . . 9 1 . . . . . 12 . . . 12 2 12 9 11 16 . . AOE 912 | . . . 44 . 26 37 34 56 . . 68 175 . 83 . 20 80 . . 45 157 61 26 Terrain Rammed . | . . . . . . . . . . . . . . . . . . . . . . . . Walls Destroyed . | . . . . . . . . . . . . . . . . . . . . . . . . Machines Disabled . | . . . . . . . . . . . . . . . . . . . . . . . . Actions | -11 -10 -10 -9 -9 -8 -8 -8 -8 -8 -7 -7 -7 -7 -6 -6 -6 -6 -6 -6 -6 -5 -5 -5 --------- Run | Scr Mat Min Mat Min Mat Gar Mat Gar Mat Fac Low Low Dat Pro Fac Ext Cet Arc Hub Gar Fac Was Fac Total 12679 | 6 723 323 357 537 550 714 781 644 257 358 1218 873 307 315 380 1150 105 317 360 822 1131 154 297 Wait 1015 | . 55 15 54 12 80 52 37 54 5 7 48 5 41 18 25 130 . 11 47 83 203 15 18 Move 9815 | . 580 296 256 514 383 534 609 496 198 303 1141 780 189 272 338 691 82 238 253 606 675 124 257 Hop . | . . . . . . . . . . . . . . . . . . . . . . . . Pick Up 151 | . 17 4 9 4 9 6 13 9 5 5 3 4 9 3 2 8 1 11 5 7 15 . 2 Fast Attach 83 | . 7 . 4 . 4 4 2 1 1 3 1 1 2 3 . 2 2 1 1 8 23 . 13 Attach 81 | 2 1 . 2 . 6 4 2 2 . 4 2 6 5 3 3 1 6 3 4 4 18 1 2 Detach 11 | . 1 . 2 . . . . . . 2 1 1 . . . . . 1 . 1 . . 2 Swap 194 | . 3 1 2 1 13 17 17 22 6 . 5 22 2 6 2 20 4 3 6 19 23 . . Drop 155 | 4 10 3 6 . 15 9 15 13 11 5 4 3 7 1 . 3 1 7 5 15 16 1 1 Fire 821 | . 49 4 22 6 38 64 84 36 31 29 13 47 23 8 . 70 9 39 37 46 151 13 2 Melee 104 | . . . . . 2 16 2 5 . . . 2 27 1 10 6 . 3 2 23 5 . . Ram . | . . . . . . . . . . . . . . . . . . . . . . . . Kick 3 | . . . . . . . . . . . . . . . . 1 . . . . 2 . . Crush 1 | . . . . . . . . . . . . . 1 . . . . . . . . . . Escape Stasis 44 | . . . . . . 8 . 6 . . . . . . . 20 . . . 10 . . . Rewire 200 | . . . . . . . . . . . . 2 . . . 198 . . . . . . . Trap 1 | . . . . . . . . . . . . . 1 . . . . . . . . . . Miscellaneous . | . . . . . . . . . . . . . . . . . . . . . . . . Route ------- -11/Scrapyard -10/Materials (discovered 5 exits: *Mat x3 / [*Min x2]) -10/Mines -9/Materials -9/Mines (discovered 2 exits: *Mat x2) -8/Materials (discovered 3 exits: *Fac x2 / Gar) -8/Garrison (discovered 2 exits: *Mat x2) -8/Materials (discovered 3 exits: *Fac x2 / Gar) -8/Garrison (discovered 2 exits: *Mat x2) -8/Materials -7/Factory (discovered 2 exits: *Low x2) -7/Lower Caves -7/Lower Caves (discovered 2 exits: *Fac / *Dat) -7/Data Miner -6/Proximity Caves -6/Factory -6/Extension (discovered 2 exits: *Fac / [*Cet]) -6/Cetus -6/Archives (discovered 3 exits: *Fac / *Hub x2) -6/Hub_04(d) -6/Garrison (discovered 2 exits: *Fac x2) -5/Factory (discovered 4 exits: *Fac x4) -5/Waste -5/Factory (discovered 3 exits: *Fac / Upp x2) History --------- Turn | Location | Event 5 | -11/Scrapyard | Discovered new exit (range 0) 5 | -11/Scrapyard | Entered Materials 311 | -10/Materials | Build established: Mutant 367 | -10/Materials | Discovered new exit (range 5) 564 | -10/Materials | Discovered new exit (range 11) 633 | -10/Materials | Discovered new exit (range 16) 653 | -10/Materials | Central database locked down 751 | -10/Materials | Discovered new exit (range 10) 1071 | -10/Materials | Discovered new exit (range 7) 1156 | -10/Materials | Entered Mines 1157 | -10/Mines | Assembled infested the area 1171 | -10/Mines | Received a Rocket Launcher from a helpful Derelict 1325 | -10/Mines | Discovered new exit (range 10) 1362 | -10/Mines | Learned Materials machine intel 1634 | -10/Mines | Entered Materials 1634 | -9/Materials | Evolved 2 slots: Propulsion x1, Utility x1 1635 | -9/Materials | Loaded intel: 53 machine locations 1731 | -9/Materials | Discovered new exit (range 5) 2206 | -9/Materials | Build established: Hauler-Mutant 2330 | -9/Materials | Entered Mines 2476 | -9/Mines | Learned 2 Materials zone layouts 2941 | -9/Mines | Discovered new exit (range 11) 3132 | -9/Mines | Joined a pair of Derelicts in attacking an 0b10 outpost 3325 | -9/Mines | A weapon hastily lodged in a ceiling crevice suddenly fell to the ground 3476 | -9/Mines | Discovered new exit (range 3) 3831 | -9/Mines | Entered Materials 3831 | -8/Materials | Evolved 2 slots: Propulsion x1, Utility x1 3832 | -8/Materials | Identified exit to Factory 5100 | -8/Materials | Garrison activated, responded to threat 5147 | -8/Materials | Discovered exit to Factory (range 16) 5172 | -8/Materials | Identified exit to Garrison 5172 | -8/Materials | Entered Garrison 5224 | -8/Garrison | Triggered checkpoint 5528 | -8/Garrison | Triggered checkpoint 5639 | -8/Garrison | Triggered checkpoint 5887 | -8/Garrison | Discovered new exit (range 10) 5944 | -8/Garrison | Triggered checkpoint 6038 | -8/Garrison | Triggered checkpoint 6436 | -8/Garrison | Discovered new exit (range 13) 6582 | -8/Garrison | Triggered checkpoint 6739 | -8/Garrison | Entered Materials 6828 | -8/Materials | Core integrity fell below 50% 7674 | -8/Materials | Discovered exit to Factory (range 8) 7910 | -8/Materials | Discovered exit to Factory (range 16) 7958 | -8/Materials | Garrison activated, responded to threat 8099 | -8/Materials | Garrison activated, responded to threat 8159 | -8/Materials | Identified exit to Garrison 8159 | -8/Materials | Entered Garrison 8160 | -8/Garrison | Triggered checkpoint 8231 | -8/Garrison | Triggered checkpoint 8346 | -8/Garrison | Core integrity fell below 20% 8406 | -8/Garrison | Discovered new exit (range 14) 8469 | -8/Garrison | Destroyed 7 combat bots 8621 | -8/Garrison | Rescued a captive Derelict 8690 | -8/Garrison | Triggered checkpoint 9061 | -8/Garrison | Triggered checkpoint 9199 | -8/Garrison | Discovered new exit (range 10) 9470 | -8/Garrison | Entered Materials 10081 | -8/Materials | Discovered exit to Factory (range 5) 10094 | -8/Materials | Entered Factory 10094 | -7/Factory | Evolved 2 slots: Utility x2 10300 | -7/Factory | Discovered new exit (range 14) 10363 | -7/Factory | Identified exit to Lower Caves 10603 | -7/Factory | Discovered exit to Lower Caves (range 12) 10997 | -7/Factory | Entered Lower Caves 11047 | -7/Lower Caves | Met a Warlord Commander 11048 | -7/Lower Caves | Learned location of Warlord (-5) 11054 | -7/Lower Caves | Found Encrypted Comm Array 11811 | -7/Lower Caves | Attracted the attention of an 0b10 checkpoint 12131 | -7/Lower Caves | Discovered new exit (range 15) 12692 | -7/Lower Caves | Encountered a Warlord checkpoint 13783 | -7/Lower Caves | Entered another Lower Caves area 14603 | -7/Lower Caves | Attracted the attention of an 0b10 outpost 14655 | -7/Lower Caves | Destroyed 10 combat bots 14664 | -7/Lower Caves | Lost 3 parts (1n1u1w) 14837 | -7/Lower Caves | Discovered new exit (range 6) 15077 | -7/Lower Caves | Encountered a Warlord checkpoint 15119 | -7/Lower Caves | Learned Factory stockpile data 15509 | -7/Lower Caves | Learned 8 Factory zone layouts 15515 | -7/Lower Caves | Found Alien Artifact 15515 | -7/Lower Caves | Identified Core Expander 15515 | -7/Lower Caves | Installed Core Expander, added new Weapon slot 15642 | -7/Lower Caves | Attracted the attention of an 0b10 checkpoint 15652 | -7/Lower Caves | Discovered new exit (range 16) 15792 | -7/Lower Caves | Entered Data Miner 15792 | -7/Data Miner | Accompanied by 1 ally 15792 | -7/Data Miner | Discovered new exit (range 6) 15837 | -7/Data Miner | Met Data Miner 15882 | -7/Data Miner | Learned location of Section 7 (-2) 15882 | -7/Data Miner | Acquired the access code to Warlord's prototype stash 15918 | -7/Data Miner | Received God Mode back door access code from Data Miner 16028 | -7/Data Miner | Interfaced with the Data Conduit 16403 | -7/Data Miner | Entered Proximity Caves 16555 | -6/Proximity Caves | Spotted B-75 Beast 16949 | -6/Proximity Caves | Discovered new exit (range 7) 16964 | -6/Proximity Caves | System corruption reached 10% 16977 | -6/Proximity Caves | System corruption reached 30% 16977 | -6/Proximity Caves | Entered Factory 16977 | -6/Factory | Evolved 2 slots: Propulsion x1, Utility x1 16980 | -6/Factory | Loaded intel: 238 machine locations 17085 | -6/Factory | Fabricated M-28 Smith (x1) 17275 | -6/Factory | Build established: Scavenger-Mutant 17293 | -6/Factory | Discovered new exit (range 16) 17305 | -6/Factory | Joined by Warlord Infantry squad 17373 | -6/Factory | Joined by Warlord Dakka squad 17647 | -6/Factory | P-60 Hacker assimilated allied AZ-LMU(s) 17673 | -6/Factory | Entered Extension 17673 | -6/Extension | Accompanied by 1 ally 17674 | -6/Extension | Loaded intel: 42 machine locations 17978 | -6/Extension | Rescued a captive Derelict 17980 | -6/Extension | Rescued a captive Derelict 18056 | -6/Extension | Rescued a captive Derelict 18057 | -6/Extension | Rescued a captive Derelict 18179 | -6/Extension | Rescued a captive Derelict 18181 | -6/Extension | Rescued a captive Derelict 18451 | -6/Extension | Build established: Commander-Gunner 18630 | -6/Extension | Spotted B-75 Beast 18649 | -6/Extension | Allies destroyed B-75 Beast 18649 | -6/Extension | Spotted B-75 Beast 18679 | -6/Extension | Allies destroyed B-75 Beast 18795 | -6/Extension | Rescued A7 18832 | -6/Extension | Rescued a captive Derelict 18842 | -6/Extension | Rescued a captive Derelict 18865 | -6/Extension | Rescued a captive Derelict 18866 | -6/Extension | Rescued a captive Derelict 18945 | -6/Extension | Rescued a captive Derelict 18945 | -6/Extension | Rescued a captive Derelict 19148 | -6/Extension | Rescued a captive Derelict 19166 | -6/Extension | Rescued a captive Derelict 19169 | -6/Extension | Rescued a captive Derelict 19170 | -6/Extension | Rescued a captive Derelict 19226 | -6/Extension | Rescued a captive Derelict 19226 | -6/Extension | Rescued a captive Derelict 19423 | -6/Extension | First assault squad dispatched 19488 | -6/Extension | Discovered new exit (range 10) 19490 | -6/Extension | Discovered new exit (range 6) 19573 | -6/Extension | Entered Cetus 19573 | -6/Cetus | Accompanied by 5 allies (A7) 19574 | -6/Cetus | Loaded intel: 24 machine locations 19578 | -6/Cetus | Acquired a Cetus Manufacturing Module code from A7 19599 | -6/Cetus | Spotted Cetus Guard 19599 | -6/Cetus | Spotted Cetus Guard 19601 | -6/Cetus | Spotted Cetus Guard 19607 | -6/Cetus | Extracted ID and sensor layout for unrecognized location from A7's data core 19609 | -6/Cetus | Spotted Cetus Guard 19630 | -6/Cetus | Destroyed Cetus Guard 19633 | -6/Cetus | Destroyed Cetus Guard 19633 | -6/Cetus | Destroyed Cetus Guard 19642 | -6/Cetus | Destroyed Cetus Guard 19663 | -6/Cetus | Lost 6 parts (1p1n2u2w) 19746 | -6/Cetus | Discovered new exit (range 16) 19774 | -6/Cetus | Entered Archives 19775 | -6/Archives | Loaded intel: 8 machine locations 19918 | -6/Archives | Discovered new exit (range 14) 19951 | -6/Archives | Discovered new exit (range 16) 20033 | -6/Archives | Discovered new exit (range 16) 20078 | -6/Archives | Build established: Scavenger-Mutant 22843 | -6/Archives | Entered Hub_04(d) 22844 | -6/Hub_04(d) | Loaded intel: 100 machine locations 23068 | -6/Hub_04(d) | Network Hub disabled 23218 | -6/Hub_04(d) | Build established: Scavenger-Tank 23509 | -6/Hub_04(d) | Identified exit to Garrison 23509 | -6/Hub_04(d) | Entered Garrison 23510 | -6/Garrison | Loaded intel: 32 machine locations 23529 | -6/Garrison | Spotted Executioner 23543 | -6/Garrison | Destroyed Executioner 23553 | -6/Garrison | Spotted Executioner 23557 | -6/Garrison | Found Exp. Targeting Computer 23583 | -6/Garrison | Destroyed Executioner 23593 | -6/Garrison | Found Adv. Kinecellerator 23602 | -6/Garrison | Found Exp. Core Analyzer 23787 | -6/Garrison | Triggered checkpoint 23862 | -6/Garrison | Triggered checkpoint 23978 | -6/Garrison | Triggered checkpoint 24149 | -6/Garrison | Discovered new exit (range 12) 24318 | -6/Garrison | Triggered checkpoint 24355 | -6/Garrison | Build established: Scavenger-Mutant 24541 | -6/Garrison | Discovered new exit (range 10) 24620 | -6/Garrison | Triggered checkpoint 24635 | -6/Garrison | Core integrity fell below 50% 24666 | -6/Garrison | Triggered checkpoint 24766 | -6/Garrison | Rescued a captive Derelict 24767 | -6/Garrison | Rescued a captive Derelict 24997 | -6/Garrison | Entered Factory 24997 | -5/Factory | Evolved 2 slots: Power x1, Utility x1 24998 | -5/Factory | Loaded intel: 253 machine locations 25297 | -5/Factory | First assault squad dispatched 25391 | -5/Factory | Identified exit to Factory 25618 | -5/Factory | Found Mni. Smartbomb Launcher 25621 | -5/Factory | Found Mni. Smartbomb Launcher 25639 | -5/Factory | Spotted B-75 Beast 25709 | -5/Factory | Lost 5 parts (2n2u1w) 25721 | -5/Factory | System corruption reached 10% 25785 | -5/Factory | Lost 5 parts (1p2n2w) 26089 | -5/Factory | Lost 3 parts (1n1u1w) 26352 | -5/Factory | Build established: Scavenger-Gunner 26352 | -5/Factory | Intercept squad dispatched 26358 | -5/Factory | Spotted Tracker 26377 | -5/Factory | Destroyed Tracker 26397 | -5/Factory | Spotted Combat Programmer 26401 | -5/Factory | Lost 4 parts (2n2u) 26410 | -5/Factory | Core integrity fell below 50% 26414 | -5/Factory | Destroyed Combat Programmer 26666 | -5/Factory | Destroyed 10 combat bots 26698 | -5/Factory | Lost 4 parts (1p1n2w) 26717 | -5/Factory | Joined by Warlord Ranger squad 27104 | -5/Factory | Build established: Hauler-Mutant 27169 | -5/Factory | Joined by Warlord Chimera squad 27210 | -5/Factory | Garrison activated, responded to threat 27526 | -5/Factory | Sucked down chute 27526 | -5/Factory | Entered Waste 27535 | -5/Waste | Spotted C-40 Crusher 27541 | -5/Waste | EMP discharged 27542 | -5/Waste | Destroyed C-40 Crusher 27574 | -5/Waste | Spotted C-40 Crusher 27594 | -5/Waste | Crushed by Compactor (1 part destroyed, 1 dropped) 27597 | -5/Waste | Crushed by Compactor (1 part destroyed, 2 dropped) 27600 | -5/Waste | Crushed by Compactor (1 part destroyed) 27603 | -5/Waste | Crushed by Compactor (1 part destroyed, 1 dropped) 27606 | -5/Waste | Crushed by Compactor (1 part destroyed, 2 dropped) 27610 | -5/Waste | Spotted C-40 Crusher 27611 | -5/Waste | Spotted C-40 Crusher 27637 | -5/Waste | Lost 6 parts (2p2n1u1w) 27638 | -5/Waste | Crushed by Compactor (1 part destroyed, 2 dropped) 27639 | -5/Waste | Core integrity fell below 20% 27641 | -5/Waste | EMP discharged 27641 | -5/Waste | System corruption reached 30% 27644 | -5/Waste | Spotted C-40 Crusher 27645 | -5/Waste | Spotted C-40 Crusher 27669 | -5/Waste | Discovered new exit (range 11) 27674 | -5/Waste | Entered Factory 27675 | -5/Factory | Loaded intel: 251 machine locations 27807 | -5/Factory | Identified exit to Upper Caves 27880 | -5/Factory | Build established: Mutant 27997 | -5/Factory | Discovered exit to Factory (range 15) 28055 | -5/Factory | Destroyed by G-50 Soldier with Heavy Laser Last Messages --------------- 28041_ Assembly Bed disabled. 28041_ Com. Wheel destroyed. 28041_ Destroyed Com. Wheel. 28042_ Penetrated by Slug. 28042_ G-50 Soldier suffers critical hit (Destroy). 28042_ G-50 Soldier destroyed. 28044_ K-01 Serf collects debris. 28044_ Penetrated by Slug. 28044_ K-01 Serf suffers critical hit (Destroy). 28047_ U-05 Engineer lays Concrete. 28047_ U-05 Engineer builds a Wall. 28049_ U-05 Engineer lays Concrete. 28049_ U-05 Engineer builds a Wall. 28052_ Critical hit (Burn: +37). 28052_ Penetrated by Slug. 28053_ K-01 Serf collects debris. 28053_ U-05 Engineer builds a Wall. 28054_ U-05 Engineer builds a Door. 28054_ Penetrated by Slug. 28054_ Adv. Weight Redist. System destroyed. Map ----- +----------------------------------------------------+ | ??????????????????????"?"????????????????????????? | | ???????????????????????????????????????""????????? | | ??????????????????????????????????????"""????????? | | ?????????????????????"""?????? ??????R"????????? | | ?????????????????????"""?????? #????"""????????? | | ?????????????????????"""????? #?????""????????? | | ???????????????????????????? #???????????????? | | ???????????????????????????? #???????????????? | | ???????????????????????????? #???????????????? | | ???????????????????????????? #???????????????? | | ???????????????????????????? #???????????????? | | ???????????????????????????? #???????????????? | | ?????????????????????????### ###?????????????? | | ?????????????????????????# * #?????????????? | | ?????????????????????????# ####### ????? | | ?????????????????????????# ????? | | ?????????????????????????# ????? | | ?????????????????????????# < ???? | | ?????????????????????????# [ ???? | | ?????????????????????????# ???????? | | ?????????????????????##### ! #?????????????? | | ?????????????????????# # #?????????????? | | ????????############## *## ##?????????????? | | ????????# Y %R# ###############? | | ????????# = "" # % ? | | ????????# ! """ @# ? | | ????????# [ """ "" + | | ????????# """"""g# | | ????????# """ """ %b # | | ????????# """S""" ! g # | | ????????################### | | ???????????????????###########+#################?? | | ???????????????????# #????????????? | | ???????????????????# """ !! #????????????? | | ???????????????????# """ [! #????????????? | | ???????????????????# """ [ #????????????? | | ???????????????????# #????????????? | | ???????????????????# """ """ """ #????????????? | | ???????????????????# """ """ """ #????????????? | | ???????????????????# """ """ """ ] #????????????? | | ???????????????????# #????????????? | | ??????????????#########+####/#+######????????????? | | ??????????????# + #?????????????????? | | ??????????????# """ # #?????????????????? | | ??????????????# """ # #????????????"""?"" | | ??????????????# """ ?# #????????????"""?"" | | ??????????????# ?# #????"""?????"""?"" | | ??????????????######??# #????"""??????????? | | ???????????????########+## #????"""??????????? | | ???????????????# # #?????????????????? | +----------------------------------------------------+ Best States ------------- Heat Dissipation 66 Energy Generation 42 Energy Capacity 670 Matter Stores 300 Matter Capacity 900 Sight Range 22 Robot Scan Range 15 Terrain Scan Density 10 Jamming Range 14 Armor Coverage 825 Resistance: TH 25 Core Shielding 30 Propulsion Shielding 66 Evasion (%) 50 Targeting Accuracy 12 Core Analysis 8 Recoil Reduction 4 Energy Filtering 50 Offensive Hacking 12 Defensive Hacking 12 Authchip Count 3 Item Schematics ----------------- Cargo Storage Unit | -10/Materials | Hacked Imp. Sensor Array | -8/Materials | Scanalyzed Hrd. Heavy Armor Plating | -8/Materials | Scanalyzed Lrn. Tractor Beam | -8/Materials | Scanalyzed Gauss Rifle | -8/Materials | Scanalyzed Machine Analyzer | -8/Materials | Scanalyzed KE Penetrator | -7/Factory | Hacked Combat Drone Bay | -7/Data Miner | Free Lgt. Regenerative Plating | -7/Data Miner | Free Cld. Aerolev Unit | -7/Data Miner | Free Gravity Neutralizer | -7/Data Miner | Free Cld. Plasma Cannon | -7/Data Miner | Free Nuclear Pulse Array | -7/Data Miner | Free Lyr. Heavy Armor Plating | -7/Data Miner | Free Hyp. Coil Gun | -7/Data Miner | Free Enh. Optical Array | -7/Data Miner | Free Imp. Arc Projector | -7/Data Miner | Free Hvy. Disruptor Cannon | -7/Data Miner | Free System Restoration Module | -6/Factory | Scanalyzed Robot Schematics ------------------ M-13 Machinist | -8/Materials | Hacked M-28 Smith | -7/Data Miner | Free X-67 Chaingunner | -7/Data Miner | Free A-15 Conveyor | -7/Data Miner | Free G-50 Soldier | -7/Data Miner | Free Y-64 Sentinel | -7/Data Miner | Free Fabricated ------------ M-28 Smith | x1 | -6/Factory | Authchip Alien Tech Used ----------------- Core Expander Achievements -------------- None Challenges ------------ None Game ------ Seed SpliceDirtyDesublimator Manual? 0 Play Time 02:29:18 Cumulative 707.8 hours Start 2022.12.03 @ 21:58:14 End 2022.12.04 @ 00:40:10 Sessions 1 Manual Loads 0 Difficulty Rogue Special Mode None Game No. 633 Rogue 633 Adventurer 0 Explorer 0 Win Type - Total 32 Types 14/5/5/1/1/1/4/1/0 Lore% 91 Gallery% 96 Achievement% 80 Wizard Run 0 Options --------- ASCII 0 Keyboard 0 Movement Mouse Keybinds 1 Fullscreen 2 Font 24/Smallcaps Map View 76x50 Tactical HUD 1 Map Filters NONE Filters NONE Steam 1 RUN: 4117f980-7f44-4ce9-8050-3fab2a637abe